{"text_format":"1","workbook":"xlsx","n_sheets":7,"sheets":["INSTRUCCIONES","COSTE DE PERSONAL","GASTOS DE COLAB EXTERNAS","GASTOS DE VIAJES","INVERSION EN ACT. MAT E INMAT","RESUMEN PRESUPUESTO","Datos desplegables"],"not_rendered":{"charts":0,"images":1,"macros":1,"external_links":0,"defined_names":1,"comments":0,"pivot_tables":0},"unopened":[],"bounds":{"document_bytes":16777216,"sheet_cells":100000,"rows_first":2000,"rows_last":500,"rows_between":2000,"halvings":0,"cell_chars":16384,"cell_head_chars":4096},"cells_cut":0,"cells_raw":0,"read":"whole","date_system":"1900"}

{"sheet":"INSTRUCCIONES","index":0,"n_rows":38,"n_cols":4,"rows_kept":38,"cut":false,"hidden":false,"merged":[[22,1,22,6],[23,1,23,6],[24,1,24,6],[25,2,25,6],[26,2,26,6],[27,2,27,6],[36,1,36,6],[37,1,37,6],[35,1,35,6],[29,2,29,6],[33,1,33,6],[34,1,34,6],[28,2,28,6],[6,1,6,6],[7,1,7,6],[9,1,10,6],[1,2,1,6],[2,2,2,6],[4,2,4,6],[3,2,3,6],[8,1,8,2],[8,3,8,4],[16,1,16,2],[17,1,17,2],[18,1,18,2],[19,1,19,2],[11,1,11,6]]}
[]
[null,"NOMBRE EMPRESA"]
[null,"NIF EMPRESA"]
[null,"IMPORTE RONDA DE INVERSION"]
[null,"TIPO DE PROYECTO"]
[]
[null,"INSTRUCCIONES"]
[null,"1. Atender en todo momento a los mensajes de error y observaciones."]
[null,"2. Los campos a cumplimentar son los sombreados en color"]
[null,"3. En la  hoja \"RESUMEN DEL PRESUPUESTO\", se presenta el presupuesto global que hay que trasladar al formulario de solicitud de ayuda. En esta hoja los campos son calculados, no hay que introducir datos."]
[]
[null,"4. Leer atentamente las bases reguladoras y convocatoria con el fin de precisar al maximo posible los gastos pasados y futuros, considerando los plazos de elegibilidad y pago"]
[null,"Link BASES REGULADORAS"]
[null,"Link CONVOCATORIA"]
[]
[null,"2. TIPO DE GASTO ELEGIBLE EN FUNCION DEL TIPO DE PROYECTO"]
[null,"Costes de personal",null,{"$f":"IFERROR(INDEX('Datos desplegables'!$A$2:$E$5, ROW()-16, MATCH($C$5, 'Datos desplegables'!$A$1:$E$1, 0)),0)","v":0}]
[null,"Colaboraciones externas",null,{"$f":"IFERROR(INDEX('Datos desplegables'!$A$2:$E$5, ROW()-16, MATCH($C$5, 'Datos desplegables'!$A$1:$E$1, 0)),0)","v":0}]
[null,"Gastos de viaje",null,{"$f":"IFERROR(INDEX('Datos desplegables'!$A$2:$E$5, ROW()-16, MATCH($C$5, 'Datos desplegables'!$A$1:$E$1, 0)),0)","v":0}]
[null,"Costes de inversion en activos materiales e inmateriales",null,{"$f":"IFERROR(INDEX('Datos desplegables'!$A$2:$E$5, ROW()-16, MATCH($C$5, 'Datos desplegables'!$A$1:$E$1, 0)),0)","v":0}]
[]
[]
[null,"TIPOS DE PROYECTOS"]
[null," INFORMATIVO, ANTE CUALQUIER DUDA CONSULTAR CON BASES REGULADORAS, CONVOCATORIA Y FORMULARIO SOLICITUD DE AYUDA)"]
[null,"TIPO DE PROYECTO"]
[null,"Innovación de producto o proceso ","Proyectos de desarrollo de nuevos productos, procesos o servicios o de mejoras de los ya existentes, incluyendo las pruebas de concepto y prototipado, diseño o rediseño de producto, proceso, envase o embalaje, así como otros proyectos de innovación que tengan un impacto relevante en la cadena de valor de la empresa."]
[null,"Inversión productiva","Inversión en activos materiales e inmateriales relacionados con la creación de un nuevo establecimiento, la ampliación de la capacidad de un establecimiento existente, la diversificación de la producción de un establecimiento en productos que anteriormente no se producían en el mismo o una transformación fundamental del proceso global de producción de un establecimiento existente."]
[null,"Digitalización de la gestión y prestación de servicios de la empresa","Proyectos de carácter tecnológico, con el objetivo de establecer una clara mejora competitiva, que consistan en la introducción efectiva de tecnologías en la empresa, para su transformación digital, con la finalidad de mejorar los productos/servicios, los procesos o los modelos de negocio."]
[null,"Promoción, lanzamiento y posicionamiento de producto o servicio","Proyectos que pueden incluir acciones para comunicar, informar y dar a conocer la existencia de un producto o servicio al mercado al que va dirigido."]
[null,"Internacionalización de producto o servicio","Proyectos que incluyen el diagnóstico de posición competitiva de la empresa y de su potencial de internacionalización, así como la elaboración y ejecución de sus planes de marketing internacional para impulsar su introducción y consolidación en los mercados exteriores y la mejora de su competitividad, mediante acciones encaminadas a la apertura de nuevos mercados o la introducción de nuevos productos, incluyendo entre ellas la participación en ferias internacionales y eventos expositivos, acciones de marketing internacional, registro de patentes, marcas e implantaciones en el exterior."]
[]
[null,"3. ORDEN DE CUMPLIMENTACION"]
[null,"3.1 COSTE DE PERSONAL, en su caso (PESTAÑA 2)"]
[null,"3.2 GASTOS DE COLABORACIONES EXTERNAS, en su caso (PESTAÑA 3)"]
[null,"3.3 GASTOS DE VIAJES, en su caso (PESTAÑA  4)"]
[null,"3.4 INVERSION EN ACTIVOS MATERIALES E INMATERIALES (PESTAÑA 5)"]
[null,"3.5 RESUMEN DEL PRESUPUESTO (PESTAÑA 6)"]
[null,"En esta pestaña se refleja el resumen del presupuesto incluyendo los costes indirectos. Es necesario revisarla y comprobar que los importes son correctos, asi como corregir los posibles errores que aparezcan."]

{"sheet":"COSTE DE PERSONAL","index":1,"n_rows":20,"n_cols":5,"rows_kept":20,"cut":false,"hidden":false,"merged":[[19,1,19,3],[0,1,0,4],[1,0,5,0],[1,1,1,4],[2,1,2,4],[3,1,3,4],[4,1,4,4],[5,1,5,4]]}
[null,"COSTES DE PERSONAL"]
["INFORMACION DE INTERES:","1. Se consideran costes de personal subvencionables los costes brutos del personal dedicado al proyecto objeto de subvención , que tengan un contrato laboral con la empresa beneficiaria diligenciado por la autoridad laboral y unas cotizaciones a la Seguridad Social en el régimen general como trabajador por cuenta ajena. Estos gastos incluyen: los sueldos y salarios fijados en un contrato de trabajo, que tengan relación con las responsabilidades especificadas en la descripción del puesto de trabajo correspondiente; y otros gastos soportados directamente por el beneficiario como cotizaciones sociales, así como otras prestaciones en favor de los trabajadores que sean obligatorias en virtud de ley o convenio, y siempre que no sean recuperables."]
[null,"2. Solo serán subvencionables los gastos del personal que, estando relacionado con el proyecto subvencionado, sean necesarios para su ejecución."]
[null,"3. Los costes de los viajes, indemnizaciones o dietas no tienen naturaleza de gastos de personal y quedan expresamente excluidos."]
[null,"4. Máximo mensual por trabajador a tiempo completo de 7.200 €"]
[null,"5. Calcular el coste estableciendo el % del tiempo de dedicación al proyecto."]
[]
[]
[null,"Puesto","% Dedicacion Proyecto","Salario bruto anual (€)","SOLICITADO"]
["Personal 1",null,null,null,{"$f":"C10*D10","v":0}]
["Personal 2",null,null,null,0]
["Personal 3",null,null,null,0]
["Personal 4",null,null,null,0]
["Personal 5",null,null,null,0]
["Personal 6",null,null,null,0]
["Personal 7",null,null,null,0]
["Personal 8",null,null,null,0]
["Personal 9",null,null,null,0]
["Personal 10",null,null,null,0]
[null,"TOTAL COSTES DE PERSONAL SUBVENCIONABLE",null,null,{"$f":"IF(LOWER(TRIM(INSTRUCCIONES!D17))=\"sí\", SUM(E10:E19), \"GASTO NO ELEGIBLE\")","v":"GASTO NO ELEGIBLE"}]

{"sheet":"GASTOS DE COLAB EXTERNAS","index":2,"n_rows":18,"n_cols":3,"rows_kept":18,"cut":false,"hidden":false,"merged":[[0,1,0,3],[1,0,4,0],[1,1,1,3],[2,1,2,3],[3,1,3,3],[4,1,4,3]]}
[null,"GASTOS DE COLABORACIONES EXTERNAS"]
["INFORMACION DE INTERES:","1. Gastos de colaboraciones externas directamente relacionadas con el proyecto empresarial. Serán elegibles los costes de investigacion contractual, conocimientos y patentes adquiridas u obtenidas por licencia de fuentes externas en condiciones de plena competencia, asi como los costes de consultoria y servicios equivalentes destinados de manera exclusiva al proyecto empresarial. En particular, se considerarán subvencionables los servicios de dirección y gestión estratégica de la empresa prestados por expertos externos en el marco del proyecto."]
[null,"2. NO SE SUBVENCIONARAN colaboraciones externas realizadas por socios de la empresa o sus empleados, ni aquellas que se establezcan con empresas del mismo grupo empresarial, con aquellas que puedan formar parte del accionariado de la beneficiaria o entre los accionistas se encuentren familiares de primer grado (mujer, marido, hijos y hermanos)."]
[null,"3. No subvencionables los gastos ordinarios de la empresa (contabilidad, asesoría fiscal y laboral), ni los necesarios para adecuación de la empresa a las normas de obligatorio cumplimiento para ejercer su actividad.  "]
[null,"4. El importe máximo subvencionable no podrá exceder el 75% del coste del proyecto total."]
[]
[null,"Empresa / Objetivo","Importe vinculado al proyecto"]
["Empresa 1"]
["Empresa 2"]
["Empresa 3"]
["Empresa 4"]
["Empresa 5"]
["Empresa 6"]
["Empresa 7"]
["Empresa 8"]
["Empresa 9"]
["Empresa 10"]
[null,"TOTAL GASTOS DE COLABORACIONES EXTERNAS SUBVENCIONABLES",{"$f":"SUM(C8:C17)","v":0}]

{"sheet":"GASTOS DE VIAJES","index":3,"n_rows":15,"n_cols":3,"rows_kept":15,"cut":false,"hidden":false,"merged":[[0,1,0,3],[1,1,1,2]]}
[null,"GASTOS DE VIAJES"]
["INFORMACION DE INTERES:","Gastos de desplazamientos de la empresa directamente relacionados con el proyecto subvencionable desplazamiento de un representante de la empresa,  (avión, tren o autobús, en clase turista), los gastos de hotel (en régimen de alojamiento de hasta cuatro estrellas y desayuno), seguro de viaje, visados y coste de entrada necesario al evento)"]
[]
[null,"Destino / Objetivo","Importe vinculado al proyecto"]
["Pais 1"]
["Pais 2"]
["Pais 3"]
["Pais 4"]
["Pais 5"]
["Pais 6"]
["Pais 7"]
["Pais 8"]
["Pais 9"]
["Pais 10"]
[null,"TOTAL GASTOS DE VIAJES SUBVENCIONABLE",{"$f":"IF(LOWER(TRIM(INSTRUCCIONES!D19))=\"Sí\", SUM(C5:C14), \"GASTO NO ELEGIBLE\")","v":"GASTO NO ELEGIBLE"}]

{"sheet":"INVERSION EN ACT. MAT E INMAT","index":4,"n_rows":16,"n_cols":3,"rows_kept":16,"cut":false,"hidden":false,"merged":[[0,1,0,3],[1,1,1,2],[2,1,2,2],[1,0,2,0]]}
[null,"INVERSIONES EN ACTIVOS MATERIALES E INMATERIALES"]
["INFORMACION DE INTERES:","1. Los gastos derivados de inversiones realizadas a terceros, excluidas las adquisiciones a empresas del grupo o partes vinculadas, en activos materiales e inmateriales nuevos a ejecutar por la empresa beneficiaria para acometer el proyecto subvencionable. Entendiéndose por:\n-\tActivos fijos materiales: bienes de equipo, instalaciones técnicas, equipos para procesos de información o datos, instrumental, utillaje, mobiliario, construcción y obra civil. Se excluye los terrenos, adquisición de inmuebles y vehículos externos.\n-\tActivos intangibles: aplicaciones informáticas, así como software especifico necesario para el proyecto y adquisición de propiedad intelectual e industrial, incluyendo licencias de fabricación y patentes, que deberán cumplir las siguientes condiciones:\na) Se emplearán exclusivamente en el establecimiento de la entidad beneficiaria.\nb)Se considerarán activos amortizables.\nc) Se adquirirán a terceros en condiciones de mercado\nd) Deberán figurar en el activo de la empresa."]
[null,"2. No serán subvencionables el mobiliario de oficina, los terrenos, los edificios, la obra civil, vehículos."]
[]
[null,"Activo / Finalidad","Importe vinculado al proyecto"]
["Activo 1"]
["Activo 2"]
["Activo 3"]
["Activo 4"]
["Activo 5"]
["Activo 6"]
["Activo 7"]
["Activo 8"]
["Activo 9"]
["Activo 10"]
[null,"TOTAL INVERSION EN ACTIVOS MATERIALES E INMATERIALES SUBVENCIONABLE",{"$f":"IF(LOWER(TRIM(INSTRUCCIONES!D20))=\"Sí\", SUM(C6:C15), \"GASTO NO ELEGIBLE\")","v":"GASTO NO ELEGIBLE"}]

{"sheet":"RESUMEN PRESUPUESTO","index":5,"n_rows":26,"n_cols":7,"rows_kept":26,"cut":false,"hidden":false,"merged":[[0,1,0,4],[1,1,1,4],[2,1,2,4],[3,1,3,4],[18,0,18,3],[5,1,5,4],[13,0,13,3],[14,0,14,3],[15,0,15,3],[16,0,16,3],[17,0,17,3],[12,0,12,3],[7,0,7,3],[9,0,9,3],[10,0,10,4],[19,0,19,3],[25,1,25,4],[22,0,25,0],[22,1,24,4]]}
[null,"RESUMEN DEL PRESUPUESTO"]
["NOMBRE EMPRESA",{"$f":"INSTRUCCIONES!C2","v":0}]
["NIF EMPRESA",{"$f":"INSTRUCCIONES!C3","v":0}]
["TIPO DE PROYECTO",{"$f":"INSTRUCCIONES!C5","v":0}]
[]
["NOTA: ","Se presenta el presupuesto global que hay que trasladar al formulario de solicitud de ayuda. En esta hoja los campos son calculados, no hay que introducir datos."]
[]
["IMPORTE RONDA DE INVERSION",null,null,null,{"$f":"INSTRUCCIONES!C4","v":0}]
[]
["IMPORTE DE COSTES SUBVENCIONABLES DEL PROYECTO según indicado en las Bases reguladoras del programa",null,null,null,{"$f":"IF($E$8<=160000,MIN(10000+MAX($E$8-10000,0)*0.1,25000),IF($E$8<=850000,MIN(25000+($E$8-160000)*0.07,73300),MIN(73300+($E$8-850000)*0.05,180800)))","v":10000}]
["La cuantía máxima de subvención a aportar por el Instituto de Fomento a cada beneficiario en cada una de las convocatorias no podrá exceder de ciento ochenta mil ochocientos euros (180.800 €). La intensidad máxima de\nla subvención podrá ser de hasta el 100% sobre el gasto subvencionable, y su cálculo se hará según la tipología de ronda definida en las Bases Reguladoras:\na) Ronda Pre-semilla: una subvención de 10.000 euros por los primeros 10.000 euros invertidos más un 10% de las cantidades adicionales aportadas por los inversores privados vía capital, prima de emisión o nota convertibles.\nb) Ronda Semilla: una subvención de 25.000 euros sobre los primeros 160.000 euros más un 7% de las cantidades adicionales aportadas por los inversores privados vía capital, prima de emisión o nota convertibles.\nc) Ronda Serie A: una subvención de 73.300 euros sobre los primeros 850.000 euros invertidos más un 5% de las cantidades adicionales aportadas por los inversores privados vía capital, prima de emisión o nota convertible."]
[]
["CONCEPTO DE GASTO",null,null,null,"COSTE ELEGIBLE PROPUESTO (€)"]
["COSTES DE PERSONAL",null,null,null,{"$f":"'COSTE DE PERSONAL'!E20","v":"GASTO NO ELEGIBLE"}]
["GASTOS DE COLABORACIONES EXTERNAS",null,null,null,{"$f":"'GASTOS DE COLAB EXTERNAS'!C18","v":0},"Punto 4. Gastos colaboraciones externas",{"$f":"IFERROR($E$15/$E$19,0)","v":0}]
["GASTOS DE VIAJES DE PROSPECCION",null,null,null,{"$f":"'GASTOS DE VIAJES'!C15","v":"GASTO NO ELEGIBLE"}]
["INVERSIONES EN ACTIVOS MATERIALES E INMATERIALES",null,null,null,{"$f":"'INVERSION EN ACT. MAT E INMAT'!C16","v":"GASTO NO ELEGIBLE"}]
["COSTES INDIRECTOS (7% COSTES SUBVENCIONABLES DEL PROYECTO)",null,null,null,{"$f":"0.07*SUM(IF(ISNUMBER(E14:E17),E14:E17,0))","v":0}]
["TOTAL PRESUPUESTO ",null,null,null,{"$f":"SUM(E14:E18)","v":0}]
["TOTAL PRESUPUESTO SUBVENCIONABLE",null,null,null,{"$f":"IFERROR(IF(G15<=75%,E19,\"Presupuesto no subvencionable\"),0)","v":0}]
[]
[]
["OBSERVACIONES",{"$f":"IF(E19>E10,\"Se tendrá que justificar en el expediente el total del presupuesto subvencionable\",\"\")","v":""}]
[]
[]
[null,{"$f":"IF(G15>75%,\"Los gastos de colaboraciones externas supera el 75% del presupuesto total subvencionable. Por favor, revise sus cantidades\",\"\")","v":""}]

{"sheet":"Datos desplegables","index":6,"n_rows":16,"n_cols":6,"rows_kept":16,"cut":false,"hidden":true,"merged":[]}
["Innovación de producto o proceso ","Inversión productiva","Digitalización de la gestión y prestación de servicios de la empresa","Promoción, lanzamiento y posicionamiento de producto o servicio","Internacionalización de producto o servicio"]
["Sí ","No","Sí","Sí","Sí"]
["Sí ","Sí","Sí","Sí","Sí"]
["No","No","No","Sí","Sí"]
["Sí ","Sí","Sí","No","No"]
[]
[]
[]
[]
[]
[null,"TIPO DE PROYECTO","a) Costes de personal.","b) Colaboraciones externas. ","Gastos de viaje","d) Costes de inversión en activos materiales e inmateriales"]
[null,"INNOVACION DE PRODUCTO O PROCESO","SI","SI","NO","SI"]
[null,"INVERSION PRODUCTIVA","NO","SI","NO","SI"]
[null,"DIGITALIZACIÓN DE LA GESTIÓN Y PRESTACIÓN DE SERVICIOS DE LA EMPRESA","SI","SI","NO","SI"]
[null,"PROMOCIÓN, LANZAMIENTO Y POSICIONAMIENTO DE PRODUCTO O SERVICIO","SI","SI","SI","NO"]
[null,"INTERNACIONALIZACIÓN DE PRODUCTO O SERVICIO","SI","SI","SI","NO"]